[Event "Championnat du monde jeunes U12"]
[Date "2024.11.23"]
[White "Bulgak, Damir"]
[Black "Le, Anh Tu"]
[WhiteElo "2044"]
[BlackElo "1812"]
[Round "8.19"]
[Result "1-0"]
[TimeControl "5400+30"]

1. e4 {[%clk 1:30:37]} 1... c5 {[%clk 1:30:56]} 2. Nf3 {[%clk 1:31:02]} 2... Nf6
{[%clk 1:31:17]} 3. e5 {[%clk 1:30:49]} 3... Nd5 {[%clk 1:31:41]} 4. Nc3 {[%clk
1:30:15]} 4... Nc7 {[%clk 1:31:08]} 5. d4 {[%clk 1:27:24]} 5... cxd4 {[%clk
1:31:06]} 6. Nxd4 {[%clk 1:27:47]} 6... g6 {[%clk 1:31:33]} 7. Bf4 {[%clk
1:25:37]} 7... Bg7 {[%clk 1:31:56]} 8. Bc4 {[%clk 1:25:24]} 8... O-O {[%clk
1:32:13]} 9. Qe2 {[%clk 1:23:34]} 9... Ne6 {[%clk 1:20:30]} 10. Bxe6 {[%clk
1:18:54]} 10... dxe6 {[%clk 1:20:10]} 11. O-O-O {[%clk 1:18:56]} 11... Qb6
{[%clk 1:07:40]} 12. h4 {[%clk 1:16:15]} 12... f6 {[%clk 1:05:24]} 13. h5 {[%clk
1:14:01]} 13... g5 {[%clk 1:04:35]} 14. h6 {[%clk 1:13:21]} 14... Bh8 {[%clk
1:04:55]} 15. Qg4 {[%clk 1:12:50]} 15... Nd7 {[%clk 0:59:18]} 16. Bg3 {[%clk
1:10:56]} 16... Nc5 {[%clk 0:55:28]} 17. f4 {[%clk 1:10:37]} 17... Bd7 {[%clk
0:55:54]} 18. fxg5 {[%clk 1:06:22]} 18... f5 {[%clk 0:56:16]} 19. Qe2 {[%clk
1:06:26]} 19... Be8 {[%clk 0:54:42]} 20. Bf2 {[%clk 1:05:06]} 20... Bf7 {[%clk
0:53:56]} 21. Kb1 {[%clk 1:04:33]} 21... Qc7 {[%clk 0:52:46]} 22. Nf3 {[%clk
0:57:09]} 22... Rac8 {[%clk 0:52:51]} 23. Bd4 {[%clk 0:53:14]} 23... a6 {[%clk
0:49:47]} 24. Nh4 {[%clk 0:51:37]} 24... b5 {[%clk 0:47:01]} 25. a3 {[%clk
0:51:10]} 25... Rfd8 {[%clk 0:43:15]} 26. Rhe1 {[%clk 0:50:22]} 26... Qc6 {[%clk
0:16:32]} 27. g4 {[%clk 0:47:53]} 27... Bg6 {[%clk 0:16:15]} 28. Nxg6 {[%clk
0:46:44]} 28... hxg6 {[%clk 0:16:37]} 29. h7+ {[%clk 0:43:45]} 29... Kxh7 {[%clk
0:08:02]} 30. Qh2+ {[%clk 0:37:41]} 30... Kg8 {[%clk 0:08:20]} 31. Qh6 {[%clk
0:36:24]} 31... Qe8 {[%clk 0:08:01]} 32. Rh1 {[%clk 0:36:00]} 32... Bg7 {[%clk
0:08:07]} 33. Qh7+ {[%clk 0:36:21]} 33... Kf8 {[%clk 0:07:22]} 34. Ne2 {[%clk
0:32:30]} 34... Qf7 {[%clk 0:03:58]} 35. Bxc5 {[%clk 0:32:45]} 35... Rxd1+
{[%clk 0:04:23]} 36. Rxd1 {[%clk 0:33:13]} 36... Bxe5 {[%clk 0:04:50]} 37. Qxf7+
{[%clk 0:32:56]} 37... Kxf7 {[%clk 0:05:20]} 38. Bd4 {[%clk 0:33:06]} 38... Bxd4
{[%clk 0:05:43]} 39. Nxd4 {[%clk 0:32:23]} 39... e5 {[%clk 0:03:07]} 40. Nf3
{[%clk 0:32:34]} 40... Ke6 {[%clk 0:02:26]} 41. Re1 {[%clk 0:31:58]} 41... e4
{[%clk 0:02:48]} 42. Nh4 {[%clk 0:32:11]} 42... Rg8 {[%clk 0:03:01]} 43. Rf1
fxg4 {[%clk 0:00:54]} 44. Kc1 {[%clk 0:29:16]} 44... Ke5 {[%clk 0:00:45]} 45.
Kd2 {[%clk 0:29:44]} 45... Kd4 {[%clk 0:01:09]} 46. Rf4 {[%clk 0:28:25]} 46...
g3 {[%clk 0:01:05]} 47. c3+ {[%clk 0:27:55]} 1-0

[Variant "Standard"]
[Site "Europe Echecs"]

[Event "Championnat du monde jeunes U12"]
[Date "2024.11.23"]
[White "Wang, Zihao(SH)"]
[Black "Batbaatar, Baatar"]
[WhiteElo "1773"]
[BlackElo "2030"]
[Round "8.20"]
[Result "0-1"]
[TimeControl "5400+30"]

1. e4 {[%clk 1:30:57]} 1... c5 {[%clk 1:30:44]} 2. Nf3 {[%clk 1:31:18]} 2... d6
{[%clk 1:31:08]} 3. d4 {[%clk 1:31:43]} 3... cxd4 {[%clk 1:31:32]} 4. Nxd4
{[%clk 1:32:10]} 4... Nf6 {[%clk 1:31:52]} 5. Nc3 {[%clk 1:32:34]} 5... a6
{[%clk 1:32:15]} 6. Be2 {[%clk 1:32:59]} 6... e5 {[%clk 1:32:35]} 7. Nb3 {[%clk
1:33:24]} 7... Be7 {[%clk 1:32:59]} 8. O-O {[%clk 1:33:49]} 8... O-O {[%clk
1:33:20]} 9. Qd3 {[%clk 1:34:14]} 9... Be6 {[%clk 1:31:28]} 10. Rd1 {[%clk
1:34:25]} 10... Nbd7 {[%clk 1:30:14]} 11. Nd5 {[%clk 1:33:56]} 11... Bxd5 {[%clk
1:29:16]} 12. exd5 {[%clk 1:34:20]} 12... Rc8 {[%clk 1:28:49]} 13. c4 {[%clk
1:22:13]} 13... Ne8 {[%clk 1:21:38]} 14. Be3 {[%clk 1:21:01]} 14... Bg5 {[%clk
1:20:31]} 15. f3 {[%clk 1:19:04]} 15... Bxe3+ {[%clk 1:18:12]} 16. Qxe3 {[%clk
1:19:29]} 16... f5 {[%clk 1:18:07]} 17. Bd3 {[%clk 1:19:23]} 17... g6 {[%clk
1:14:52]} 18. Rac1 {[%clk 1:19:15]} 18... a5 {[%clk 1:06:05]} 19. Nd2 {[%clk
1:18:10]} 19... Nef6 {[%clk 1:05:39]} 20. b3 {[%clk 1:17:04]} 20... Nc5 {[%clk
0:54:49]} 21. h3 {[%clk 1:08:53]} 21... Nh5 {[%clk 0:50:42]} 22. Bf1 {[%clk
1:08:56]} 22... f4 {[%clk 0:42:26]} 23. Qf2 {[%clk 1:08:33]} 23... Ng3 {[%clk
0:42:29]} 24. Re1 {[%clk 1:07:48]} 24... Qg5 {[%clk 0:35:53]} 25. a3 {[%clk
1:03:16]} 25... Rce8 {[%clk 0:35:28]} 26. b4 {[%clk 1:00:06]} 26... e4 {[%clk
0:34:32]} 27. fxe4 {[%clk 1:00:23]} 27... Ncxe4 {[%clk 0:31:25]} 28. Nf3 {[%clk
0:59:44]} 28... Qh5 {[%clk 0:26:36]} 29. Qc2 {[%clk 0:58:54]} 29... Ng5 {[%clk
0:25:59]} 30. Qb3 {[%clk 0:55:32]} 30... Re3 {[%clk 0:17:10]} 31. Rxe3 {[%clk
0:55:40]} 31... fxe3 {[%clk 0:17:35]} 32. Qxe3 {[%clk 0:53:48]} 32... Nxf3+
{[%clk 0:16:25]} 33. gxf3 {[%clk 0:54:14]} 33... Rxf3 {[%clk 0:12:42]} 34. Qe6+
{[%clk 0:53:15]} 34... Kg7 {[%clk 0:12:27]} 35. Qg4 {[%clk 0:52:42]} 35... Qxg4
{[%clk 0:10:49]} 36. hxg4 {[%clk 0:53:05]} 36... Rxf1+ {[%clk 0:11:13]} 37. Rxf1
{[%clk 0:53:30]} 37... Nxf1 {[%clk 0:11:23]} 38. Kxf1 {[%clk 0:53:56]} 38... Kf6
{[%clk 0:11:48]} 39. c5 {[%clk 0:53:52]} 39... dxc5 {[%clk 0:11:53]} 40. bxc5
{[%clk 0:54:16]} 40... h5 {[%clk 0:11:28]} 41. Kg2 {[%clk 0:38:48]} 41... Ke5
{[%clk 0:10:41]} 42. d6 {[%clk 0:39:01]} 42... Ke6 {[%clk 0:11:07]} 43. Kh3
{[%clk 0:39:19]} 43... b6 {[%clk 0:11:32]} 44. cxb6 {[%clk 0:39:45]} 44... Kxd6
{[%clk 0:11:59]} 45. gxh5 {[%clk 0:40:07]} 45... gxh5 {[%clk 0:12:25]} 46. b7
{[%clk 0:39:04]} 46... Kc7 {[%clk 0:12:38]} 47. Kh4 {[%clk 0:39:33]} 47... Kxb7
{[%clk 0:13:02]} 48. Kxh5 {[%clk 0:40:01]} 48... Kc6 {[%clk 0:13:16]} 49. Kg5
{[%clk 0:40:19]} 49... Kb5 {[%clk 0:13:41]} 50. Kf4 {[%clk 0:40:42]} 50... Ka4
{[%clk 0:14:06]} 51. Ke3 {[%clk 0:41:10]} 51... Kxa3 {[%clk 0:14:30]} 52. Kd2
{[%clk 0:41:37]} 52... Kb2 {[%clk 0:14:52]} 0-1

[Variant "Standard"]
[Site "Europe Echecs"]

[Event "Championnat du monde jeunes U12"]
[Date "2024.11.23"]
[White "Marchand, Calix"]
[Black "Belyaletdinov, Leonard"]
[WhiteElo "2027"]
[BlackElo "1903"]
[Round "8.21"]
[Result "1-0"]
[TimeControl "5400+30"]

1. e4 {[%clk 1:30:50]} 1... c6 {[%clk 1:30:56]} 2. d4 {[%clk 1:31:06]} 2... d5
{[%clk 1:31:19]} 3. Nc3 {[%clk 1:31:27]} 3... dxe4 {[%clk 1:31:43]} 4. Nxe4
{[%clk 1:31:53]} 4... Bf5 {[%clk 1:32:08]} 5. Qf3 {[%clk 1:31:36]} 5... Bxe4
{[%clk 1:30:27]} 6. Qxe4 {[%clk 1:32:04]} 6... Nf6 {[%clk 1:30:48]} 7. Qd3
{[%clk 1:31:35]} 7... g6 {[%clk 1:30:57]} 8. Nf3 {[%clk 1:30:20]} 8... Bg7
{[%clk 1:31:15]} 9. g3 {[%clk 1:29:37]} 9... O-O {[%clk 1:31:38]} 10. Qe2 {[%clk
1:29:10]} 10... Nbd7 {[%clk 1:30:18]} 11. Bg2 {[%clk 1:29:18]} 11... Rc8 {[%clk
1:25:40]} 12. O-O {[%clk 1:28:47]} 12... Re8 {[%clk 1:18:52]} 13. b3 {[%clk
1:26:41]} 13... c5 {[%clk 1:17:14]} 14. Bb2 {[%clk 1:25:14]} 14... cxd4 {[%clk
1:14:09]} 15. Nxd4 {[%clk 1:23:32]} 15... Qb6 {[%clk 1:08:50]} 16. Rfd1 {[%clk
1:22:40]} 16... a6 {[%clk 0:58:51]} 17. c4 {[%clk 1:17:39]} 17... e5 {[%clk
0:56:00]} 18. Nc2 {[%clk 1:16:45]} 18... Nc5 {[%clk 0:51:40]} 19. Ne3 {[%clk
1:11:01]} 19... e4 {[%clk 0:47:44]} 20. Bd4 {[%clk 1:09:33]} 20... Qc7 {[%clk
0:45:07]} 21. Qb2 {[%clk 1:05:44]} 21... Qc6 {[%clk 0:38:32]} 22. g4 {[%clk
0:58:50]} 22... Rcd8 {[%clk 0:32:45]} 23. Rac1 {[%clk 0:53:52]} 23... Qd6 {[%clk
0:19:56]} 24. g5 {[%clk 0:35:50]} 24... Ng4 {[%clk 0:17:55]} 25. Bxg7 {[%clk
0:31:09]} 25... Qxh2+ {[%clk 0:18:14]} 26. Kf1 {[%clk 0:31:35]} 26... Nxe3+
{[%clk 0:16:51]} 27. fxe3 {[%clk 0:31:06]} 27... Qh5 {[%clk 0:14:01]} 28. Bd4
{[%clk 0:22:47]} 28... Re5 {[%clk 0:11:43]} 29. Rd2 {[%clk 0:18:34]} 29... Rf5+
{[%clk 0:11:21]} 30. Kg1 {[%clk 0:18:09]} 30... Nd3 {[%clk 0:11:04]} 31. Bf6
{[%clk 0:17:33]} 31... Re8 {[%clk 0:10:07]} 32. Rxd3 {[%clk 0:15:03]} 32... exd3
{[%clk 0:10:05]} 33. Qd2 {[%clk 0:12:43]} 33... Qh4 {[%clk 0:07:09]} 34. Rf1
{[%clk 0:10:53]} 34... h6 {[%clk 0:05:49]} 35. Qxd3 {[%clk 0:09:31]} 35... Rxf1+
{[%clk 0:05:11]} 36. Kxf1 {[%clk 0:09:59]} 36... Qg4 {[%clk 0:04:13]} 37. Qd4
{[%clk 0:07:48]} 37... Qf5+ {[%clk 0:03:28]} 38. Kg1 {[%clk 0:08:16]} 38... Qe6
{[%clk 0:02:01]} 39. Bxb7 {[%clk 0:05:53]} 39... hxg5 {[%clk 0:02:08]} 40. Bh8
{[%clk 0:04:55]} 40... Qxe3+ {[%clk 0:01:07]} 41. Qxe3 {[%clk 0:05:24]} 41...
Rxe3 {[%clk 0:01:36]} 42. Bf6 {[%clk 0:03:37]} 42... Kf8 {[%clk 0:00:59]} 43. c5
{[%clk 0:02:33]} 43... Re1+ {[%clk 0:00:55]} 44. Kf2 {[%clk 0:03:02]} 44... Rc1
{[%clk 0:01:12]} 45. c6 {[%clk 0:02:45]} 45... Ke8 {[%clk 0:01:00]} 46. Bxa6
{[%clk 0:02:14]} 46... Rc5 {[%clk 0:00:54]} 47. Kg3 {[%clk 0:01:54]} 47... Kf8
{[%clk 0:01:11]} 48. Bb7 {[%clk 0:01:59]} 48... Rc2 {[%clk 0:01:16]} 49. a4
{[%clk 0:02:14]} 49... Kg8 {[%clk 0:01:28]} 50. a5 {[%clk 0:02:22]} 50... Kh7
{[%clk 0:01:52]} 51. a6 {[%clk 0:02:44]} 51... Rd2 {[%clk 0:01:25]} 52. a7
{[%clk 0:03:04]} 52... Rd3+ {[%clk 0:01:48]} 53. Kf2 {[%clk 0:03:33]} 53... Kh6
{[%clk 0:01:58]} 54. a8=Q {[%clk 0:03:55]} 54... Rd2+ {[%clk 0:02:13]} 55. Ke3
{[%clk 0:04:23]} 1-0

[Variant "Standard"]
[Site "Europe Echecs"]

[Event "Championnat du monde jeunes U12"]
[Date "2024.11.23"]
[White "Saminskij, Jan"]
[Black "Chen, Jun-Wei"]
[WhiteElo "2202"]
[BlackElo "1907"]
[Round "8.22"]
[Result "0-1"]
[TimeControl "5400+30"]

1. e4 {[%clk 1:30:47]} 1... c5 {[%clk 1:30:55]} 2. Nf3 {[%clk 1:30:53]} 2... e6
{[%clk 1:31:16]} 3. d4 {[%clk 1:30:57]} 3... cxd4 {[%clk 1:31:37]} 4. Nxd4
{[%clk 1:31:20]} 4... Nc6 {[%clk 1:32:02]} 5. Nc3 {[%clk 1:31:40]} 5... Qc7
{[%clk 1:32:17]} 6. f4 {[%clk 1:32:03]} 6... a6 {[%clk 1:32:37]} 7. Nxc6 {[%clk
1:32:26]} 7... Qxc6 {[%clk 1:31:41]} 8. Bd3 {[%clk 1:31:37]} 8... b5 {[%clk
1:31:47]} 9. Qe2 {[%clk 1:32:01]} 9... Bb7 {[%clk 1:31:17]} 10. Bd2 {[%clk
1:32:22]} 10... Rc8 {[%clk 1:30:30]} 11. a3 {[%clk 1:23:47]} 11... Bc5 {[%clk
1:28:28]} 12. O-O-O {[%clk 1:23:37]} 12... Ne7 {[%clk 1:26:56]} 13. h4 {[%clk
1:23:04]} 13... O-O {[%clk 1:24:04]} 14. h5 {[%clk 1:20:17]} 14... d5 {[%clk
1:22:28]} 15. e5 {[%clk 1:01:54]} 15... b4 {[%clk 1:18:57]} 16. axb4 {[%clk
1:00:41]} 16... Bxb4 {[%clk 1:19:17]} 17. g4 {[%clk 0:51:07]} 17... d4 {[%clk
1:10:12]} 18. Nb1 {[%clk 0:46:29]} 18... Qa4 {[%clk 1:06:57]} 19. Rh3 {[%clk
0:43:39]} 19... Bxd2+ {[%clk 1:02:41]} 20. Rxd2 {[%clk 0:42:45]} 20... Qc6
{[%clk 0:50:40]} 21. Qf2 {[%clk 0:40:28]} 21... Qc5 {[%clk 0:48:15]} 22. Qe2
{[%clk 0:38:57]} 22... f5 {[%clk 0:39:50]} 23. Rg3 {[%clk 0:29:47]} 23... Nd5
{[%clk 0:35:52]} 24. Qf2 {[%clk 0:27:50]} 24... Ne3 {[%clk 0:31:50]} 25. gxf5
{[%clk 0:27:46]} 25... exf5 {[%clk 0:31:08]} 26. Qg1 {[%clk 0:26:09]} 26... Rc7
{[%clk 0:30:07]} 27. Re2 {[%clk 0:20:45]} 27... Be4 {[%clk 0:30:01]} 28. Bxe4
{[%clk 0:20:03]} 28... fxe4 {[%clk 0:29:58]} 29. h6 {[%clk 0:19:47]} 29... Qxc2+
{[%clk 0:30:20]} 0-1

[Variant "Standard"]
[Site "Europe Echecs"]

[Event "Championnat du monde jeunes U12"]
[Date "2024.11.23"]
[White "Huseynov, Ahmed"]
[Black "Shilon Rahav, Eliran"]
[WhiteElo "1886"]
[BlackElo "2150"]
[Round "8.23"]
[Result "0-1"]
[TimeControl "5400+30"]

1. Nf3 {[%clk 1:30:55]} 1... c5 {[%clk 1:30:53]} 2. g3 {[%clk 1:31:19]} 2... Nc6
{[%clk 1:31:13]} 3. Bg2 {[%clk 1:31:42]} 3... e5 {[%clk 1:31:09]} 4. c4 {[%clk
1:32:06]} 4... g6 {[%clk 1:31:10]} 5. Nc3 {[%clk 1:32:14]} 5... Bg7 {[%clk
1:31:02]} 6. O-O {[%clk 1:31:37]} 6... Nge7 {[%clk 1:31:05]} 7. d3 {[%clk
1:25:57]} 7... O-O {[%clk 1:30:19]} 8. a3 {[%clk 1:21:48]} 8... d6 {[%clk
1:27:51]} 9. Rb1 {[%clk 1:20:35]} 9... a5 {[%clk 1:27:03]} 10. Ne1 {[%clk
1:18:17]} 10... Be6 {[%clk 1:25:11]} 11. Nc2 {[%clk 1:17:24]} 11... d5 {[%clk
1:25:25]} 12. cxd5 {[%clk 1:15:09]} 12... Nxd5 {[%clk 1:25:36]} 13. Ne3 {[%clk
1:03:55]} 13... Nde7 {[%clk 1:24:33]} 14. Ne4 {[%clk 1:02:04]} 14... b6 {[%clk
1:15:30]} 15. Ng5 {[%clk 0:50:23]} 15... Qd7 {[%clk 1:10:15]} 16. Qa4 {[%clk
0:38:06]} 16... Rab8 {[%clk 1:06:19]} 17. Nxe6 {[%clk 0:27:20]} 17... Qxe6
{[%clk 1:05:14]} 18. Qc4 {[%clk 0:27:17]} 18... Qd6 {[%clk 1:02:30]} 19. Nd5
{[%clk 0:21:54]} 19... b5 {[%clk 1:01:03]} 20. Nxe7+ {[%clk 0:22:02]} 20... Qxe7
{[%clk 0:57:29]} 21. Qc2 {[%clk 0:19:00]} 21... Nd4 {[%clk 0:54:49]} 22. Qd1
{[%clk 0:19:21]} 22... Rfd8 {[%clk 0:53:24]} 23. Bd2 {[%clk 0:18:05]} 23... a4
{[%clk 0:49:53]} 24. Rc1 {[%clk 0:12:42]} 24... Nb3 {[%clk 0:48:15]} 25. Rc2
{[%clk 0:12:38]} 25... Rbc8 {[%clk 0:46:54]} 26. Qe1 {[%clk 0:10:44]} 26... Qe6
{[%clk 0:41:31]} 27. Be3 {[%clk 0:09:20]} 27... c4 {[%clk 0:40:51]} 28. dxc4
{[%clk 0:07:00]} 28... Rxc4 {[%clk 0:40:42]} 29. Qb1 {[%clk 0:06:48]} 29... f5
{[%clk 0:39:39]} 30. Rd1 {[%clk 0:06:45]} 30... Nd4 {[%clk 0:35:02]} 31. Bxd4
{[%clk 0:06:19]} 31... Rcxd4 {[%clk 0:34:19]} 32. Rxd4 {[%clk 0:05:00]} 32...
Rxd4 {[%clk 0:34:32]} 33. Bb7 {[%clk 0:03:06]} 33... h5 {[%clk 0:32:12]} 34. Kg2
{[%clk 0:02:59]} 34... h4 {[%clk 0:30:09]} 35. Qc1 {[%clk 0:02:36]} 35... f4
{[%clk 0:29:16]} 36. f3 {[%clk 0:01:10]} 36... h3+ {[%clk 0:29:23]} 37. Kf1
{[%clk 0:00:47]} 37... Qd7 {[%clk 0:29:21]} 38. Rc8+ {[%clk 0:00:33]} 38... Kh7
{[%clk 0:29:38]} 39. Qc5 {[%clk 0:00:34]} 39... fxg3 {[%clk 0:28:20]} 40. hxg3
h2 {[%clk 0:28:00]} 0-1

[Variant "Standard"]
[Site "Europe Echecs"]

[Event "Championnat du monde jeunes U12"]
[Date "2024.11.23"]
[White "Golubovic, Erik"]
[Black "Bundan, Edward"]
[WhiteElo "2147"]
[BlackElo "1905"]
[Round "8.24"]
[Result "1-0"]
[TimeControl "5400+30"]

1. d4 {[%clk 1:30:51]} 1... Nf6 {[%clk 1:30:49]} 2. c4 {[%clk 1:31:09]} 2... e6
{[%clk 1:31:11]} 3. Nf3 {[%clk 1:31:30]} 3... d5 {[%clk 1:31:23]} 4. g3 {[%clk
1:31:42]} 4... Bb4+ {[%clk 1:31:35]} 5. Bd2 {[%clk 1:32:05]} 5... Bd6 {[%clk
1:31:44]} 6. Bg2 {[%clk 1:32:13]} 6... c6 {[%clk 1:31:46]} 7. O-O {[%clk
1:32:35]} 7... O-O {[%clk 1:31:20]} 8. Qc2 {[%clk 1:25:30]} 8... Ne4 {[%clk
1:30:39]} 9. Bc3 {[%clk 1:24:05]} 9... Nd7 {[%clk 1:29:28]} 10. Nbd2 {[%clk
1:23:32]} 10... f5 {[%clk 1:24:34]} 11. Ne5 {[%clk 1:18:34]} 11... Ndf6 {[%clk
1:16:03]} 12. b3 {[%clk 1:11:05]} 12... Nxc3 {[%clk 0:28:03]} 13. Qxc3 {[%clk
1:11:05]} 13... Qe7 {[%clk 0:28:03]} 14. Ndf3 {[%clk 1:11:05]} 14... Ne4 {[%clk
0:28:03]} 15. Qc2 {[%clk 1:11:05]} 15... a5 {[%clk 0:28:03]} 16. c5 {[%clk
1:11:05]} 16... Bc7 {[%clk 0:28:03]} 17. a3 {[%clk 1:11:05]} 17... g5 {[%clk
0:28:03]} 18. Nd3 {[%clk 1:11:05]} 18... g4 {[%clk 0:28:03]} 19. Nfe5 {[%clk
1:11:05]} 19... Bxe5 {[%clk 0:28:03]} 20. Nxe5 Ng5 21. b4 {[%clk 0:47:54]} 21...
Nf7 {[%clk 0:25:22]} 22. Nd3 {[%clk 0:43:55]} 22... e5 {[%clk 0:22:55]} 23. dxe5
{[%clk 0:39:18]} 23... Nxe5 {[%clk 0:22:30]} 24. Nf4 {[%clk 0:35:15]} 24... Be6
{[%clk 0:20:01]} 25. b5 {[%clk 0:25:01]} 25... Nc4 {[%clk 0:17:30]} 26. bxc6
{[%clk 0:24:10]} 26... bxc6 {[%clk 0:17:49]} 27. h3 {[%clk 0:23:10]} 27... gxh3
{[%clk 0:16:03]} 28. Bxh3 {[%clk 0:22:44]} 28... Bd7 {[%clk 0:15:46]} 29. Qd1
{[%clk 0:20:08]} 29... Rad8 {[%clk 0:13:06]} 30. Qd4 {[%clk 0:18:21]} 30... Qe4
{[%clk 0:11:57]} 31. Qc3 {[%clk 0:16:59]} 31... Qe5 {[%clk 0:10:52]} 32. Qd3
{[%clk 0:12:35]} 32... Qe4 {[%clk 0:09:37]} 33. Qc3 {[%clk 0:08:25]} 33... Qe5
{[%clk 0:09:33]} 34. Qd3 {[%clk 0:07:37]} 34... Qe4 {[%clk 0:09:28]} 35. Bg2
{[%clk 0:02:28]} 35... Qxd3 {[%clk 0:09:15]} 36. exd3 {[%clk 0:02:57]} 36... Nd2
{[%clk 0:08:50]} 37. Rfd1 {[%clk 0:01:33]} 37... Nb3 {[%clk 0:08:51]} 38. Rab1
{[%clk 0:01:52]} 38... Nxc5 {[%clk 0:08:52]} 39. Rdc1 {[%clk 0:01:45]} 39... Ne6
{[%clk 0:06:53]} 40. Nxe6 {[%clk 0:02:02]} 40... Bxe6 {[%clk 0:07:17]} 41. Rxc6
{[%clk 0:02:29]} 41... Bf7 {[%clk 0:07:16]} 42. Rc5 {[%clk 0:01:59]} 42... a4
{[%clk 0:07:19]} 43. Rb4 {[%clk 0:01:40]} 43... Rc8 {[%clk 0:07:16]} 44. Rxc8
{[%clk 0:01:39]} 44... Rxc8 {[%clk 0:07:40]} 45. Rxa4 {[%clk 0:01:54]} 45... Rc3
{[%clk 0:07:33]} 46. Rd4 {[%clk 0:01:35]} 46... Rxa3 {[%clk 0:07:40]} 47. Bxd5
{[%clk 0:01:59]} 47... Bxd5 {[%clk 0:07:56]} 48. Rxd5 {[%clk 0:02:26]} 48... Kg7
{[%clk 0:08:17]} 49. Rxf5 {[%clk 0:01:46]} 49... Rxd3 {[%clk 0:08:40]} 50. Kg2
{[%clk 0:01:55]} 50... Kg6 {[%clk 0:09:00]} 51. Ra5 {[%clk 0:02:14]} 51... Rb3
{[%clk 0:09:16]} 52. f4 {[%clk 0:02:06]} 52... Rc3 {[%clk 0:09:22]} 53. Kh3
{[%clk 0:02:02]} 53... Rb3 {[%clk 0:09:01]} 54. Kg4 {[%clk 0:01:54]} 54... Rc3
{[%clk 0:09:02]} 55. Ra6+ {[%clk 0:01:36]} 55... Kg7 {[%clk 0:09:25]} 56. Rb6
{[%clk 0:01:12]} 56... Ra3 {[%clk 0:09:21]} 57. Rc6 {[%clk 0:01:35]} 57... Rb3
{[%clk 0:09:09]} 58. Ra6 {[%clk 0:01:54]} 58... Rc3 {[%clk 0:09:06]} 59. Rb6
{[%clk 0:01:32]} 59... Ra3 {[%clk 0:09:05]} 60. f5 {[%clk 0:01:16]} 60... Rc3
{[%clk 0:08:48]} 61. Ra6 {[%clk 0:01:27]} 61... Rb3 {[%clk 0:08:30]} 62. Kh4
{[%clk 0:01:11]} 62... Rc3 {[%clk 0:08:21]} 63. Rb6 {[%clk 0:00:47]} 63... Ra3
{[%clk 0:08:30]} 64. Rc6 {[%clk 0:01:09]} 64... Rb3 {[%clk 0:08:45]} 65. Ra6
{[%clk 0:01:34]} 65... Rc3 {[%clk 0:08:32]} 66. g4 {[%clk 0:01:30]} 66... Rc4
{[%clk 0:08:29]} 67. Kg5 {[%clk 0:01:22]} 67... Rc5 {[%clk 0:07:42]} 68. Ra7+
{[%clk 0:01:36]} 68... Kg8 {[%clk 0:07:43]} 69. Re7 {[%clk 0:01:16]} 69... Rc6
{[%clk 0:06:05]} 70. Rd7 {[%clk 0:00:41]} 70... Rb6 {[%clk 0:04:53]} 71. Rc7
{[%clk 0:01:02]} 71... Ra6 {[%clk 0:04:34]} 72. Rb7 Rc6 {[%clk 0:04:43]} 73. Ra7
{[%clk 0:01:42]} 73... Rb6 {[%clk 0:04:50]} 74. Re7 {[%clk 0:01:54]} 74... Ra6
{[%clk 0:04:55]} 75. Re6 {[%clk 0:02:03]} 75... Ra4 {[%clk 0:04:43]} 76. Kf6
{[%clk 0:01:43]} 76... h6 {[%clk 0:04:13]} 77. Re8+ {[%clk 0:01:12]} 77... Kh7
{[%clk 0:04:37]} 78. Re7+ {[%clk 0:01:02]} 78... Kh8 {[%clk 0:04:44]} 79. g5
{[%clk 0:00:33]} 79... hxg5 {[%clk 0:05:03]} 80. Kg6 {[%clk 0:00:42]} 80... Ra8
{[%clk 0:04:25]} 81. Rh7+ {[%clk 0:00:34]} 81... Kg8 {[%clk 0:04:45]} 82. f6
{[%clk 0:00:56]} 82... Ra6 {[%clk 0:04:36]} 83. Rb7 {[%clk 0:01:09]} 83... Ra8
{[%clk 0:04:30]} 84. Rg7+ {[%clk 0:01:30]} 84... Kf8 {[%clk 0:04:43]} 85. Rh7
{[%clk 0:01:53]} 1-0

[Variant "Standard"]
[Site "Europe Echecs"]

[Event "Championnat du monde jeunes U12"]
[Date "2024.11.23"]
[White "Minga-Nagy, Abel Inti"]
[Black "Ivarlac, Vladislav"]
[WhiteElo "2033"]
[BlackElo "1867"]
[Round "8.25"]
[Result "1-0"]
[TimeControl "5400+30"]

1. e4 {[%clk 1:30:55]} 1... e6 {[%clk 1:30:56]} 2. d4 {[%clk 1:31:20]} 2... d5
{[%clk 1:31:23]} 3. Bd3 {[%clk 1:30:46]} 3... Nf6 {[%clk 1:29:47]} 4. e5 {[%clk
1:29:10]} 4... Nfd7 {[%clk 1:29:55]} 5. Nf3 {[%clk 1:26:12]} 5... Be7 {[%clk
1:27:17]} 6. c3 {[%clk 1:23:17]} 6... c5 {[%clk 1:25:19]} 7. h4 {[%clk 1:17:17]}
7... h6 {[%clk 1:22:22]} 8. Qe2 {[%clk 1:10:35]} 8... Nc6 {[%clk 1:20:43]} 9. a3
{[%clk 1:08:05]} 9... Qb6 {[%clk 1:14:54]} 10. dxc5 {[%clk 0:58:05]} 10... Nxc5
{[%clk 1:13:59]} 11. O-O {[%clk 0:58:14]} 11... Nxd3 {[%clk 1:12:41]} 12. Qxd3
{[%clk 0:57:30]} 12... a5 {[%clk 1:09:03]} 13. Be3 {[%clk 0:54:00]} 13... Bc5
{[%clk 1:06:16]} 14. Bxc5 {[%clk 0:54:12]} 14... Qxc5 {[%clk 1:06:42]} 15. b4
{[%clk 0:53:36]} 15... Qe7 {[%clk 1:03:59]} 16. b5 {[%clk 0:53:08]} 16... Nb8
{[%clk 1:03:42]} 17. Nbd2 {[%clk 0:51:12]} 17... O-O {[%clk 1:01:31]} 18. c4
{[%clk 0:49:19]} 18... Rd8 {[%clk 1:00:00]} 19. Qe3 {[%clk 0:44:55]} 19... Nd7
{[%clk 0:57:49]} 20. Rac1 {[%clk 0:43:07]} 20... Nf8 {[%clk 0:50:21]} 21. c5
{[%clk 0:41:35]} 21... Bd7 {[%clk 0:46:44]} 22. a4 {[%clk 0:37:57]} 22... Rac8
{[%clk 0:45:21]} 23. Nb3 {[%clk 0:36:40]} 23... Ra8 {[%clk 0:41:52]} 24. Qc3
{[%clk 0:33:43]} 24... Rdc8 {[%clk 0:40:46]} 25. Qd2 {[%clk 0:31:19]} 25... Be8
{[%clk 0:37:59]} 26. Nxa5 {[%clk 0:26:40]} 26... Rxc5 {[%clk 0:37:31]} 27. Rxc5
{[%clk 0:25:42]} 27... Qxc5 {[%clk 0:37:55]} 28. Nxb7 {[%clk 0:26:09]} 28... Qa7
{[%clk 0:37:34]} 29. Nd6 {[%clk 0:26:01]} 29... Qxa4 {[%clk 0:37:42]} 30. Rb1
{[%clk 0:24:43]} 30... Rb8 {[%clk 0:37:02]} 31. Qc3 {[%clk 0:22:42]} 31... Qa7
{[%clk 0:36:13]} 32. b6 {[%clk 0:21:25]} 32... Qa2 {[%clk 0:35:14]} 33. Ra1
{[%clk 0:21:07]} 33... Qe2 {[%clk 0:35:10]} 34. Qc7 {[%clk 0:21:30]} 34... Qb2
{[%clk 0:35:04]} 35. Ra6 {[%clk 0:20:39]} 35... Nd7 {[%clk 0:34:24]} 36. Nxe8
{[%clk 0:20:55]} 36... h5 {[%clk 0:34:10]} 37. Nd6 {[%clk 0:19:41]} 37... Rf8
{[%clk 0:34:24]} 38. Qxd7 {[%clk 0:18:35]} 38... Qc1+ {[%clk 0:34:36]} 39. Kh2
{[%clk 0:18:56]} 39... Qf4+ {[%clk 0:35:01]} 40. Kh1 {[%clk 0:18:39]} 40... Qc1+
{[%clk 0:35:23]} 41. Ng1 {[%clk 0:19:04]} 1-0

[Variant "Standard"]
[Site "Europe Echecs"]